[Event "V. Korchnoy Memorial 2018"]
[Site "St. Petersburg"]
[Date "2018.08.20"]
[Round "6"]
[White "Levin, Evgeny A"]
[Black "Karasev, Vladimir I"]
[Result "1-0"]
[ECO "E53"]
[WhiteElo "2523"]
[BlackElo "2334"]
[Annotator "ChessBase"]
[PlyCount "49"]
[EventDate "2018.08.15"]
[EventType "swiss"]
[EventCountry "RUS"]
[SourceTitle "playchess.com"]
[Source "ChessBase"]
[SourceQuality "1"]
[TimeControl "5400+30"]

1. d4 {[%emt 0:08:23]} Nf6 {[%emt 0:00:00]} 2. c4 {[%emt 0:00:04]} e6 {[%emt 0:00:00]} 3. Nf3 {[%emt 0:00:22]} d5 {[%emt 0:00:00]} 4. Nc3 {[%emt 0:00:17]} Bb4 {[%emt 0:00:39]} 5. e3 {[%emt 0:00:35]} O-O {[%emt 0:01:53]} 6. Bd3 {[%emt 0:00:10]} c5 {[%emt 0:02:35]} 7. cxd5 {[%emt 0:00:26]} exd5 {[%emt 0:01:58]} 8. dxc5 {[%emt 0:01:08]} Nc6 {[%emt 0:01:06]} 9. O-O {[%emt 0:00:26]} Bxc5 {[%emt 0:00:31]} 10. h3 {[%emt 0:00:49]} Re8 {[%emt 0:01:30]} 11. b3 {[%emt 0:01:15]} a6 {[%emt 0:08:09]} 12. Bb2 {[%emt 0:00:45]} Qd6 {[%emt 0:02:00]} 13. Rc1 {[%emt 0:05:03]} Bd7 {[%emt 0:06:12]} 14. Bb1 {[%emt 0:14:56]} Rad8 {[%emt 0:04:10]} 15. Nxd5 {[%emt 0:13:22]} Ne4 {[%emt 0:12:27]} 16. Bxe4 {[%emt 0:07:09]} Rxe4 {[%emt 0:00:27]} 17. Ng5 {[%emt 0:05:29]} Rh4 {[%emt 0:03:19]} 18. Qf3 {[%emt 0:01:07]} Be8 19. Rxc5 {[%emt 0:07:28]} Qxc5 {[%emt 0:14:07]} 20. Nf6+ {[%emt 0:00:16]} Kh8 {[%emt 0:02:13]} 21. Nxe8 {[%emt 0:01:25]} Rxe8 {[%emt 0:06:50]} 22. Bxg7+ {[%emt 0:03:45]} Kxg7 {[%emt 0:00:02]} 23. Qxf7+ {[%emt 0:00:06]} Kh6 {[%emt 0:00:22]} 24. Qf6+ {[%emt 0:00:02]} Kh5 {[%emt 0:00:08]} 25. Nf7 {[%emt 0:00:31]} 1-0

[Event "V. Korchnoy Memorial 2018"]
[Site "St. Petersburg"]
[Date "2018.08.20"]
[Round "6"]
[White "Gagare, Shardul"]
[Black "Stupak, Kirill"]
[Result "1/2-1/2"]
[ECO "A40"]
[WhiteElo "2490"]
[BlackElo "2573"]
[Annotator "RC"]
[PlyCount "205"]
[EventDate "2018.08.15"]
[EventType "swiss"]
[EventCountry "RUS"]
[SourceTitle "playchess.com"]
[Source "ChessBase"]
[SourceQuality "1"]
[TimeControl "5400+30"]

1. d4 {[%emt 0:01:56]} g6 {[%emt 0:09:10]} 2. c4 {[%emt 0:00:39]} Bg7 {[%emt 0:00:02]} 3. Nc3 {[%emt 0:00:12]} e6 {[%emt 0:00:05]} 4. Nf3 {[%emt 0:02:17]} Ne7 {[%emt 0:00:28]} 5. h4 {[%emt 0:01:07]} h6 {[%emt 0:00:21]} 6. e4 {[%emt 0:02:29]} d5 {[%emt 0:00:01]} 7. e5 {[%emt 0:00:07]} Nbc6 {[%emt 0:02:37]} 8. Bf4 {[%emt 0:17:17]} b6 {[%emt 0:10:31]} 9. Qc2 {[%emt 0:19:51]} Qd7 {[%emt 0:15:37]} 10. a3 {[%emt 0:04:37]} Bb7 {[%emt 0:01:20]} 11. O-O-O {[%emt 0:06:27]} O-O-O {[%emt 0:09:13]} 12. b4 {[%emt 0:04:00]} dxc4 {[%emt 0:01:30]} 13. Bxc4 {[%emt 0:00:12]} Nd5 {[%emt 0:03:52]} 14. Nxd5 {[%emt 0:05:22]} exd5 {[%emt 0:00:04]} 15. Bb5 {[%emt 0:00:47]} a6 {[%emt 0:10:15]} 16. Bd3 {[%emt 0:00:22]} Kb8 {[%emt 0:01:28]} 17. Kb2 {[%emt 0:04:17]} Rde8 {[%emt 0:01:15]} 18. Be3 {[%emt 0:08:59]} Nd8 {[%emt 0:05:17]} 19. Nd2 {[%emt 0:01:36]} Ne6 {[%emt 0:00:19]} 20. Nb3 {[%emt 0:03:09]} g5 {[%emt 0:06:31]} 21. hxg5 {[%emt 0:00:37]} hxg5 {[%emt 0:00:06]} 22. Bf5 {[%emt 0:02:43]} f6 {[%emt 0:02:32]} 23. Rxh8 {[%emt 0:03:24]} Rxh8 {[%emt 0:01:32]} 24. Rc1 {[%emt 0:01:26]} Re8 {[%emt 0:00:17]} 25. exf6 {[%emt 0:01:08]} Bxf6 {[%emt 0:00:01]} 26. Rh1 {[%emt 0:00:21]} Qd6 {[%emt 0:02:00]} 27. Ka2 {[%emt 0:03:11]} Bc8 {[%emt 0:01:50]} 28. Rh6 {[%emt 0:00:58]} Qf8 {[%emt 0:00:59]} 29. Rh7 {[%emt 0:01:31]} Qd6 {[%emt 0:04:10]} 30. Rh6 {[%emt 0:02:02]} Rf8 {[%emt 0:00:01]} 31. g4 {[%emt 0:00:42]} Kb7 {[%emt 0:01:29]} 32. Qb1 {[%emt 0:01:39]} Ka7 {[%emt 0:00:55]} 33. Qc1 {[%emt 0:00:23]} Bd7 {[%emt 0:01:08]} 34. Rh7 {[%emt 0:00:12]} Kb8 {[%emt 0:00:50]} 35. f3 {[%emt 0:00:13]} Bc8 {[%emt 0:04:47]} 36. Bxe6 {[%emt 0:01:14]} Bxe6 {[%emt 0:00:02]} 37. Bg1 {[%emt 0:00:11]} Rf7 {[%emt 0:02:57]} 38. Bh2 {[%emt 0:00:05]} Qe7 {[%emt 0:00:18]} 39. Rxf7 {[%emt 0:01:03]} Bxf7 {[%emt 0:00:02]} 40. Qd2 {[%emt 0:00:39]} Be8 {[%emt 0:00:43]} 41. Qb2 {[%emt 0:00:33]} Bb5 {[%emt 0:00:34]} 42. Be5 {[%emt 0:00:18]} Qf7 {[%emt 0:00:46]} 43. Nd2 {[%emt 0:00:26]} Bxe5 {[%emt 0:01:25]} 44. dxe5 {[%emt 0:00:02]} d4+ {[%emt 0:00:00]} 45. Ka1 {[%emt 0:00:01]} Qf4 {[%emt 0:01:26]} 46. e6 {[%emt 0:00:58]} Qe3 {[%emt 0:00:01]} 47. e7 {[%emt 0:00:41]} Kc8 {[%emt 0:00:40]} 48. Ne4 {[%emt 0:00:05]} Qxf3 {[%emt 0:01:58]} 49. Nxg5 {[%emt 0:00:42]} Qxg4 {[%emt 0:00:30]} 50. Qd2 {[%emt 0:01:16]} Kd7 {[%emt 0:00:30]} 51. Qe1 {[%emt 0:00:21]} Be2 {[%emt 0:00:22]} 52. Qc1 {[%emt 0:00:36]} d3 {[%emt 0:00:40]} 53. Qe3 {[%emt 0:00:16]} Ke8 {[%emt 0:00:16]} 54. Ne6 {[%emt 0:00:43]} Kxe7 {[%emt 0:00:27]} 55. Nf4+ {[%emt 0:00:14]} Kd7 {[%emt 0:00:41]} 56. Nxd3 {[%emt 0:00:05]} Kc8 {[%emt 0:00:33]} 57. Ne5 {[%emt 0:00:05]} Qg2 {[%emt 0:00:18]} 58. Qd4 {[%emt 0:00:57]} Kb7 {[%emt 0:00:08]} 59. a4 {[%emt 0:00:25]} Bf1 {[%emt 0:00:54]} 60. a5 {[%emt 0:00:25]} bxa5 {[%emt 0:00:24]} 61. bxa5 {[%emt 0:00:05]} Bb5 {[%emt 0:00:01]} 62. Qc3 {[%emt 0:00:57]} Qd5 {[%emt 0:00:02]} 63. Qf3 {[%emt 0:00:22]} Qxf3 {[%emt 0:00:42]} 64. Nxf3 {[%emt 0:00:01]} Kc6 {[%emt 0:00:16]} 65. Kb2 {[%emt 0:00:04]} Kc5 {[%emt 0:00:38]} 66. Kc3 {[%emt 0:00:09]} Bc6 {[%emt 0:00:02]} 67. Ne5 {[%emt 0:01:27]} Be4 {[%emt 0:01:22]} 68. Nc4 {[%emt 0:01:46]} Bf5 {[%emt 0:01:12]} 69. Nb6 {[%emt 0:00:31]} Be4 {[%emt 0:00:34]} 70. Nc4 {[%emt 0:00:12]} Bb7 {[%emt 0:00:14]} 71. Ne5 {[%emt 0:00:48]} Bd5 {[%emt 0:00:37]} 72. Nd7+ {[%emt 0:00:27]} Kb5 {[%emt 0:00:37]} 73. Nb6 {[%emt 0:00:10]} Bc6 {[%emt 0:00:30]} 74. Nc4 {[%emt 0:00:17]} Bb7 {[%emt 0:00:04]} 75. Ne5 {[%emt 0:00:25]} Kxa5 {[%emt 0:00:18]} 76. Kc4 {[%emt 0:00:02]} Kb6 {[%emt 0:00:19]} 77. Nd7+ {[%emt 0:00:23]} Kc6 {[%emt 0:00:28]} 78. Nf6 {[%emt 0:00:06]} Kb6 {[%emt 0:01:00]} 79. Nd7+ {[%emt 0:00:02]} Ka5 {[%emt 0:00:07]} 80. Nf6 {[%emt 0:01:04]} Bf3 {[%emt 0:01:07]} 81. Ne8 {[%emt 0:00:05]} c6 {[%emt 0:00:01]} 82. Kc5 {[%emt 0:01:58]} Ka4 {[%emt 0:00:30]} 83. Nd6 {[%emt 0:00:14]} Bd5 {[%emt 0:00:56]} 84. Nb7 {[%emt 0:00:10]} a5 {[%emt 0:00:01]} 85. Kb6 {[%emt 0:01:18]} Kb4 {[%emt 0:00:01]} 86. Nxa5 {[%emt 0:00:06]} c5 {[%emt 0:00:02]} 87. Ka6 {[%emt 0:00:07]} Bc4+ {[%emt 0:00:29]} 88. Kb6 {[%emt 0:00:04]} Bb5 {[%emt 0:00:01]} 89. Nb3 {[%emt 0:00:53]} c4 {[%emt 0:00:02]} 90. Nd4 {[%emt 0:00:20]} Ba4 {[%emt 0:00:52]} 91. Nf5 {[%emt 0:00:19]} c3 {[%emt 0:02:36]} 92. Ne3 {[%emt 0:00:05]} Bb3 {[%emt 0:00:32]} 93. Kc6 {[%emt 0:00:01]} Bg8 {[%emt 0:00:35]} 94. Kb6 {[%emt 0:00:09]} Bf7 {[%emt 0:00:24]} 95. Kc6 {[%emt 0:00:05]} Bc4 {[%emt 0:00:25]} 96. Nc2+ {[%emt 0:00:44]} Kb3 {[%emt 0:00:36]} 97. Ne3 {[%emt 0:00:01]} Be2 {[%emt 0:00:31]} 98. Kc5 {[%emt 0:00:01]} Kb2 {[%emt 0:00:33]} 99. Kd4 {[%emt 0:00:02]} Bh5 {[%emt 0:00:31]} 100. Nd5 {[%emt 0:00:10]} c2 {[%emt 0:00:30]} 101. Nb4 {[%emt 0:00:02]} c1=N {[%emt 0:00:19]} 102. Nd3+ {[%emt 0:00:07]} Nxd3 {[%emt 0:00:06]} 103. Kxd3 {[%emt 0:00:01]} 1/2-1/2